[Event "1000GM Memorial Day NY IM-B 2023"]
[Site "New York"]
[Date "2023.05.27"]
[Round "4.6"]
[White "Bortnyk, Mykola"]
[Black "Chen, Justin"]
[Result "0-1"]
[ECO "B53"]
[WhiteElo "2425"]
[BlackElo "2333"]
[Annotator "TA"]
[PlyCount "120"]
[EventDate "2023.05.23"]
[EventType "schev"]
[EventCountry "USA"]
[SourceTitle "playchess.com"]
[Source "ChessBase"]
[SourceQuality "1"]
[TimeControl "5400+30"]

{[%evp 9,120,13,12,5,7,-39,-40,-34,-38,-38,-39,-38,-38,-46,-25,-42,-5,-84,-76,-87,-84,-193,-92,-92,-89,-104,-104,-102,-112,-221,-218,-229,-229,-237,-236,-256,-256,-248,-247,-250,-237,-275,-249,-256,-244,-265,-253,-250,-248,-300,-264,-352,-373,-372,-369,-417,-404,-502,-496,-504,-497,-548,-564,-585,-556,-1104,-1037,-1157,-1142,-1110,-1027,-1931,-1988,-1897,-1712,-1690,-1310,-1897,-1519,-1865,-1795,-1746,-1525,-2107,-1854,-1446,-1317,-1955,-1920,-1991,-1891,-2274,-1958,-2273,-2146,-6195,-6107,-6091,-5593,-4134,-4134,-29972,-29973,-29972,-29973,-29974,-29974,-29970,-29971,-29983,-29983,-29983,-29976]} 1. e4 {[%emt 0:27:39]} c5 {[%emt 0:00:23]} 2. Nf3 {[%emt 0:00:37]} d6 {[%emt 0:00:18]} 3. Nc3 {[%emt 0:00:35]} Nf6 {[%emt 0:01:58]} 4. d4 {[%emt 0:01:19]} cxd4 {[%emt 0:00:06]} 5. Qxd4 {[%emt 0:00:02]} Nc6 {[%emt 0:00:18]} 6. Qe3 {[%emt 0:00:06] B53: Sicilian: 2...d6: Lines with Qxd4.} g6 {[%emt 0:01:45] [#]} 7. b3 $146 {[%emt 0:01:44]} (7. h3 $11) ({Predecessor:} 7. Bc4 Bg7 8. h3 O-O 9. O-O b6 10. Rd1 Nd7 11. b3 Bb7 12. Bb2 Rc8 13. Rd2 {1-0 Vachier Lagrave,M (2750)-Giri,A (2761) Norway Chess Armageddon 10th rapid 2022 (9)}) 7... Ng4 $15 {[%emt 0:15:51]} 8. Qd2 {[%emt 0:04:48] Black is slightly better.} Bh6 {[%emt 0:01:55]} 9. Qe2 {[%emt 0:02:59]} Bg7 {[%emt 0:07:18]} 10. Bb2 {[%emt 0:00:23]} Qa5 {[%emt 0:00:19]} 11. Qd2 {[%emt 0:00:13]} Bh6 $36 {[%emt 0:11:14][%mdl 2048] Black has good play.} 12. Qd3 {[%emt 0:03:19]} O-O {[%emt 0:18:52]} (12... Qc5 $5 {[%cal Rc5f2]} 13. Nd1 O-O $15) 13. a3 {[%emt 0:03:34]} (13. Qb5 $11 {remains equal.}) 13... Qb6 $17 {[%emt 0:03:21] Black has more active pieces.} 14. Qe2 {[%emt 0:00:04]} Be6 $1 {[%emt 0:02:14][%cal Oe6c4]} 15. Rd1 {[%emt 0:02:26]} (15. Nd5 $17 Bxd5 16. exd5 Qa5+ 17. b4 Qxd5 18. c4) 15... Rfc8 {[%emt 0:04:45]} (15... Bc4 $1 $19 {[%cal Rc4e2]} 16. bxc4 Qxb2) 16. Nd5 {[%emt 0:23:30]} Bxd5 {[%emt 0:00:04]} 17. Rxd5 {[%emt 0:02:57]} Bg7 {[%emt 0:03:48] Repels h4} 18. Bxg7 {[%emt 0:00:31]} Kxg7 {[%emt 0:00:02]} 19. Qd2 {[%emt 0:06:55] [#]} (19. c4 $17) 19... Nf6 $1 $19 {[%emt 0:00:53][%csl LRd5,LRe4]} 20. Rb5 {[%emt 0:00:01] [#]} Qc7 {[%emt 0:00:05]} ({Not} 20... Nxe4 21. Qe2 Nc3 22. Rxb6 $15) 21. Bd3 {[%emt 0:00:16]} h6 {[%emt 0:00:35] Prevents Rg5.} 22. O-O {[%emt 0:03:49]} a6 {[%emt 0:00:05]} 23. Rb4 {[%emt 0:00:03]} Nxb4 {[%emt 0:00:05]} 24. Qxb4 {[%emt 0:00:27]} b5 {[%emt 0:03:36]} 25. Qd2 {[%emt 0:00:07]} Qc5 {[%emt 0:01:04]} 26. Qc1 {[%emt 0:02:01]} Ra7 {[%emt 0:00:10][%cal Ba8a7,Ba7c7,Bc7c5][%mdl 32]} 27. Re1 {[%emt 0:01:51]} Rac7 {[%emt 0:01:00]} 28. h3 {[%emt 0:00:49]} Qc3 {[%emt 0:02:23][%cal Oc3d3] And now ...Qxd3! would win.} 29. Qf4 {[%emt 0:02:33]} Rc5 {[%emt 0:01:45]} 30. b4 {[%emt 0:00:41]} R5c7 {[%emt 0:00:58]} 31. e5 {[%emt 0:00:02]} dxe5 {[%emt 0:01:08]} 32. Rxe5 {[%emt 0:00:01]} Qxa3 {[%emt 0:01:05]} 33. g4 {[%emt 0:00:02] [#]} Rc4 $1 {[%emt 0:02:30][%mdl 64] Double Attack} 34. Qe3 {[%emt 0:00:35]} Rxb4 {[%emt 0:01:54]} 35. g5 {[%emt 0:00:29]} hxg5 {[%emt 0:00:20]} 36. Nxg5 {[%emt 0:01:55]} Rc7 {[%emt 0:00:45]} 37. Qg3 {[%emt 0:01:11][%cal Og5f7]} Rb1+ {[%emt 0:01:46]} 38. Kg2 {[%emt 0:01:28]} Qc1 {[%emt 0:00:09][%csl Gb1][%cal Rc1h1]} 39. Qh2 {[%emt 0:00:01] Inhibits Qh1+.} Rd7 {[%emt 0:01:48]} 40. Re3 {[%emt 0:00:10] [#]} Rxd3 $1 {[%emt 0:01:09]} 41. cxd3 {[%emt 0:00:02] [#]} Qxe3 $3 {[%emt 0:00:09][%mdl 512]} 42. fxe3 {[%emt 0:00:24]} Rb2+ {[%emt 0:00:01]} 43. Kg1 {[%emt 0:00:05]} Rxh2 {[%emt 0:00:02]} 44. Kxh2 {[%emt 0:00:04][%mdl 4096] Endgame KN-KN} a5 {[%emt 0:01:10]} 45. Nf3 {[%emt 0:00:06]} a4 {[%emt 0:00:47]} 46. Kg3 {[%emt 0:00:07]} b4 {[%emt 0:01:12]} 47. e4 {[%emt 0:00:30]} b3 {[%emt 0:00:47]} 48. Nd2 {[%emt 0:00:03]} e5 {[%emt 0:00:11]} 49. Kf3 {[%emt 0:00:20]} Kh6 {[%emt 0:00:56]} 50. Ke3 {[%emt 0:00:12]} Kg5 {[%emt 0:00:36]} 51. Nf3+ {[%emt 0:00:25]} Kh5 {[%emt 0:01:12]} 52. Kd2 {[%emt 0:00:02]} a3 {[%emt 0:00:33][%cal Ba4a3,Ba3a2][%mdl 32] ( -> ...a2)} 53. Kc3 {[%emt 0:00:10]} a2 {[%emt 0:00:04]} 54. Kb2 {[%emt 0:00:03]} Nd7 {[%emt 0:00:03] Strongly threatening ...Nc5.} 55. d4 {[%emt 0:00:44]} exd4 {[%emt 0:00:22] Black mates.} 56. Nxd4 {[%emt 0:00:02]} Nc5 {[%emt 0:00:07]} 57. e5 {[%emt 0:00:28]} Kh4 {[%emt 0:00:30]} 58. Nf3+ {[%emt 0:00:04]} Kg3 {[%emt 0:00:03]} 59. Ng5 {[%emt 0:00:32]} Nd3+ {[%emt 0:00:05]} 60. Ka1 {[%emt 0:00:03]} Nxe5 {[%emt 0:00:05] Artfully played by Chen.   Weighted Error Value: White=0.75/Black=0.10 (very precise)} 0-1

[Event "1000GM Memorial Day NY IM-B 2023"]
[Site "New York"]
[Date "2023.05.28"]
[Round "5.1"]
[White "Chen, Justin"]
[Black "Ansh M Shah"]
[Result "1/2-1/2"]
[ECO "D40"]
[WhiteElo "2333"]
[BlackElo "2171"]
[Annotator "TA"]
[PlyCount "51"]
[EventDate "2023.05.23"]
[EventType "schev"]
[EventCountry "USA"]
[SourceTitle "playchess.com"]
[Source "ChessBase"]
[SourceQuality "1"]
[TimeControl "5400+30"]

{[%evp 11,51,27,25,29,58,64,66,55,56,62,57,60,75,72,70,79,85,73,83,79,96,76,81,84,111,84,97,61,72,78,81,32,37,18,11,-12,0,-13,-4,-6,-6,-35]} 1. Nf3 {[%emt 0:00:06]} Nf6 {[%emt 0:00:07]} 2. c4 {[%emt 0:00:04]} e6 {[%emt 0:00:08]} 3. Nc3 {[%emt 0:00:13]} d5 {[%emt 0:00:05]} 4. d4 {[%emt 0:00:04]} c5 {[%emt 0:00:09]} 5. e3 {[%emt 0:01:00]} a6 {[%emt 0:00:16]} 6. cxd5 {[%emt 0:01:22]} Nxd5 {[%emt 0:00:27]} 7. Bd3 {[%emt 0:01:05] D40: Queen's Gambit Declined: Semi-Tarrasch with 5 e3.} Nxc3 {[%emt 0:01:37]} 8. bxc3 {[%emt 0:00:04] [#]} Be7 $146 {[%emt 0:00:23]} ({Predecessor:} 8... Qc7 9. O-O c4 10. Bc2 Bd6 11. Qe2 b5 12. e4 Bf4 13. Ba3 Bd6 14. Bxd6 Qxd6 {1-0 Gutierrez Palomino,A (1965)-Ferrer Fargas,J (1659) Barcelona Ciutat op-B 2021 (2)}) 9. O-O {[%emt 0:01:34] White is slightly better.} O-O {[%emt 0:00:24]} 10. Qc2 {[%emt 0:05:52]} g6 {[%emt 0:01:41]} 11. Rd1 {[%emt 0:03:17]} Nd7 {[%emt 0:03:45]} 12. a4 {[%emt 0:02:17]} b6 {[%emt 0:03:56]} 13. e4 {[%emt 0:06:46] White is much more active. The black rooks are badly placed.} Bb7 {[%emt 0:01:19]} 14. Bf4 {[%emt 0:02:53]} Nf6 {[%emt 0:14:07][%cal Oc5c4]} 15. Qe2 {[%emt 0:12:31]} Qc8 {[%emt 0:06:45]} 16. Re1 {[%emt 0:04:35]} Re8 {[%emt 0:03:05] [#]} 17. Rab1 $1 {[%emt 0:03:29]} Nh5 {[%emt 0:05:20]} 18. Be3 {[%emt 0:04:03]} Qc7 {[%emt 0:00:46]} 19. Qb2 {[%emt 0:03:26]} b5 {[%emt 0:06:02]} 20. axb5 {[%emt 0:02:29]} axb5 {[%emt 0:00:02]} 21. Bxb5 {[%emt 0:00:18]} ({Much weaker is} 21. Qxb5 Reb8 $11) (21. dxc5 $16 Bxc5 22. Qxb5 Bxe3 23. Rxe3 (23. Qxb7 Qxb7 24. Rxb7 Bc5 $14)) 21... Reb8 $1 $14 {[%emt 0:02:10]} 22. Qc2 {[%emt 0:00:16]} Nf6 $1 {[%emt 0:01:46] The position is equal.} 23. d5 {[%emt 0:06:38]} exd5 {[%emt 0:02:04]} 24. e5 {[%emt 0:01:36]} Nh5 {[%emt 0:05:13]} 25. Qd2 {[%emt 0:03:10]} Ng7 {[%emt 0:05:13]} 26. Bg5 {[%emt 0:05:16] Weighted Error Value: White=0.12 (very precise) /Black=0.06 (flawless)} 1/2-1/2

[Event "1000GM Memorial Day NY IM-B 2023"]
[Site "New York"]
[Date "2023.05.28"]
[Round "5.2"]
[White "Luo, Terry"]
[Black "Pang, Qi"]
[Result "1/2-1/2"]
[ECO "D94"]
[WhiteElo "2321"]
[BlackElo "2165"]
[Annotator "TA"]
[PlyCount "80"]
[EventDate "2023.05.23"]
[EventType "schev"]
[EventCountry "USA"]
[SourceTitle "playchess.com"]
[Source "ChessBase"]
[SourceQuality "1"]
[TimeControl "5400+30"]

{[%evp 14,80,43,43,47,46,39,17,12,12,13,19,12,7,6,0,15,8,13,-10,2,0,35,39,40,40,42,31,39,33,32,20,47,6,7,9,9,8,8,0,2,0,0,0,0,0,0,0,0,0,0,0,0,0,0,0,0,0,0,0,0,0,0,0,0,0,0,0,0]} 1. d4 {[%emt 0:00:01]} d5 {[%emt 0:00:08]} 2. c4 {[%emt 0:00:03]} c6 {[%emt 0:00:04]} 3. Nf3 {[%emt 0:00:02]} Nf6 {[%emt 0:00:09]} 4. e3 {[%emt 0:00:09]} a6 {[%emt 0:00:21]} 5. a4 {[%emt 0:00:24]} g6 {[%emt 0:00:45]} 6. Nc3 {[%emt 0:00:08]} Bg7 {[%emt 0:00:33]} 7. Be2 {[%emt 0:00:19]} O-O {[%emt 0:00:20]} 8. O-O {[%emt 0:00:01]} b6 {[%emt 0:12:12] D94: Grünfeld: 4 Nf3 Bg7 5 e3.} 9. Ne5 {[%emt 0:11:42]} Bb7 {[%emt 0:05:11] [#]} 10. Bd2 $146 {[%emt 0:03:23]} ({Predecessor:} 10. Qb3 e6 11. cxd5 cxd5 12. a5 b5 13. Rd1 Nbd7 14. Nd3 Ne4 15. Bd2 Nd6 16. Be1 {0-1 Krings,C (2281)-Wendel,S (2214) Bad Zwesten op 7th 2003 (9)}) 10... Nbd7 {[%emt 0:01:15]} 11. Nxd7 {[%emt 0:01:26]} Nxd7 {[%emt 0:00:38]} (11... Qxd7 {keeps more tension.} 12. a5 dxc4 13. axb6 c5) 12. cxd5 {[%emt 0:01:49]} cxd5 {[%emt 1:14:54]} 13. Bf3 {[%emt 0:04:11]} Nf6 {[%emt 0:00:00]} 14. Rc1 {[%emt 0:00:33]} Qd6 {[%emt 0:00:00]} 15. Qb3 {[%emt 0:00:30]} Rfc8 {[%emt 0:00:00]} 16. Nb1 {[%emt 0:09:13]} Rxc1 {[%emt 0:00:00]} 17. Rxc1 {[%emt 0:00:06]} Rc8 {[%emt 0:00:00]} 18. Rxc8+ {[%emt 0:01:07]} Bxc8 {[%emt 0:00:00]} 19. a5 {[%emt 0:01:27]} bxa5 {[%emt 0:00:00]} 20. Bxa5 {[%emt 0:00:28]} Qc6 {[%emt 0:00:00]} 21. Nc3 {[%emt 0:03:43][%cal Rf3d5,Bb1c3,Bc3a4,Ba4c5][%mdl 32]} e6 {[%emt 0:00:00]} 22. Bb4 {[%emt 0:02:01]} Ne4 {[%emt 0:00:00]} 23. Qa4 {[%emt 0:24:45]} Qxa4 {[%emt 0:00:00] The position is equal.} 24. Nxa4 {[%emt 0:00:02]} Bd7 {[%emt 0:00:00]} 25. Bd1 {[%emt 0:02:09]} Bf8 {[%emt 0:00:00]} 26. Bxf8 {[%emt 0:01:25]} Kxf8 $11 {[%emt 0:00:00][%mdl 4096] Endgame KBN-KBN} 27. f3 {[%emt 0:00:11]} Nd6 {[%emt 0:00:00]} 28. Nc5 {[%emt 0:00:49][%csl LRa6,LRd7]} Bb5 {[%emt 0:00:00]} 29. Kf2 {[%emt 0:00:49]} Ke7 {[%emt 0:00:00]} 30. Be2 {[%emt 0:00:28]} a5 {[%emt 0:00:00]} 31. Bxb5 {[%emt 0:01:14]} Nxb5 {[%emt 0:00:00] KN-KN} 32. Ke2 {[%emt 0:00:03]} Nd6 {[%emt 0:00:00]} 33. Kd3 {[%emt 0:01:34]} Kd8 {[%emt 0:00:00]} 34. g4 {[%emt 0:01:29]} h5 {[%emt 0:00:00]} 35. gxh5 {[%emt 0:04:59]} gxh5 {[%emt 0:00:00]} 36. b3 {[%emt 0:00:04]} Kc7 {[%emt 0:00:00]} 37. e4 {[%emt 0:08:44]} Nb7 {[%emt 0:02:08] [#] ...Nxc5+ would be deadly.} 38. Na4 {[%emt 0:02:13]} Kc6 {[%emt 0:00:31]} 39. Nc3 {[%emt 0:00:42]} Nd6 {[%emt 0:01:47]} 40. h4 {[%emt 0:00:58]} Nc8 {[%emt 0:02:31] Weighted Error Value: White=0.04 (flawless) /Black=0.04 (flawless)} 1/2-1/2

[Event "1000GM Memorial Day NY IM-B 2023"]
[Site "New York"]
[Date "2023.05.28"]
[Round "5.3"]
[White "Bisiriyu-Salam, Oluwaseun"]
[Black "Lee, Alice"]
[Result "0-1"]
[ECO "B52"]
[WhiteElo "2011"]
[BlackElo "2391"]
[Annotator "TA"]
[PlyCount "78"]
[EventDate "2023.05.23"]
[EventType "schev"]
[EventCountry "USA"]
[SourceTitle "playchess.com"]
[Source "ChessBase"]
[SourceQuality "1"]
[TimeControl "5400+30"]

{[%evp 12,78,8,0,24,0,0,-18,-19,-21,-4,-1,0,0,0,0,0,0,0,0,0,-45,-56,-112,-120,-374,-355,-379,-384,-374,-329,-347,-360,-387,-384,-383,-380,-378,-340,-347,-337,-321,-301,-397,-409,-410,-406,-393,-366,-354,-279,-5731,-5527,-5903,-5903,-29973,-29974,-29974,-29975,-29975,-29976,-29977,-29978,-29989,-29990,-29990,-29991,-29994,-29995]} 1. e4 {[%emt 0:05:31]} c5 {[%emt 0:00:13]} 2. Nf3 {[%emt 0:00:11]} d6 {[%emt 0:00:06]} 3. Bb5+ {[%emt 0:00:12]} Bd7 {[%emt 0:00:07]} 4. Bxd7+ {[%emt 0:00:18]} Nxd7 {[%emt 0:00:06][%cal Bb8d7,Bd7e5,Be5f3][%mdl 32]} 5. c4 {[%emt 0:00:15]} Ngf6 {[%emt 0:01:35]} 6. Nc3 {[%emt 0:00:13]} e6 {[%emt 0:01:46]} 7. O-O {[%emt 0:00:26]} Ne5 {[%emt 0:03:15] B52: Sicilian: Moscow Variation with 3...Bd7.} 8. b3 {[%emt 0:00:54]} Be7 {[%emt 0:03:39] [#]} 9. d4 $146 {[%emt 0:01:07]} ({Predecessor:} 9. d3 O-O 10. Bf4 Ng6 11. Bg3 Nh5 12. d4 Nxg3 13. hxg3 Bf6 14. Rc1 Qa5 15. Qd2 {1-0 Juenger,H (2165)-Kienboeck,B (1922) AUT-ch Zwisch Internet blitz 2020 (1)}) 9... Nxf3+ {[%emt 0:01:08] The position is equal.} 10. gxf3 {[%emt 0:00:05]} cxd4 {[%emt 0:03:22]} 11. Qxd4 {[%emt 0:00:13]} Nh5 {[%emt 0:01:05]} 12. f4 {[%emt 0:04:00]} Bf6 {[%emt 0:01:53]} 13. Qd3 {[%emt 0:02:01]} Qa5 {[%emt 0:07:59]} 14. Nb5 {[%emt 0:01:27][%cal Od3d6] [#] Qxd6! would be deadly.} Bxa1 {[%emt 0:10:09]} 15. Qxd6 {[%emt 0:00:49]} Rc8 {[%emt 0:00:20][%cal Ba8c8,Bc8d8,Bd8d1][%mdl 32] Hoping for ...a6.} 16. Ba3 {[%emt 0:19:45][%csl Ga3][%cal Rd6e7]} (16. e5 $5 {[%cal Rc1a3]}) 16... Bf6 {[%emt 0:06:02] Dodges Qe7+. Threatens to win with ...a6.} 17. e5 $1 {[%emt 0:10:32] [#]} Bh4 {[%emt 0:05:18]} 18. Rd1 $2 {[%emt 0:03:34][%mdl 8192] Loses the game.} (18. Qd3 $17 g6 19. f5) 18... Rd8 $19 {[%emt 0:01:51]} (18... Nxf4 $2 19. Qd7#) 19. Nc7+ {[%emt 0:07:04]} Qxc7 {[%emt 0:00:03]} 20. Qxc7 {[%emt 0:00:10]} Rxd1+ {[%emt 0:00:04]} 21. Kg2 {[%emt 0:00:02]} Rd7 {[%emt 0:09:15]} (21... Nxf4+ $2 {too greedy.} 22. Kf3 Bd8 23. Qxb7 $17) 22. Qb8+ {[%emt 0:05:50]} Bd8 {[%emt 0:00:12]} 23. Kf3 {[%emt 0:02:29]} a6 {[%emt 0:02:44][%cal Og7g5]} 24. Bd6 {[%emt 0:01:06]} h6 {[%emt 0:01:52]} 25. c5 {[%emt 0:03:24]} g5 {[%emt 0:02:53]} 26. b4 {[%emt 0:01:09]} f5 {[%emt 0:04:53]} (26... gxf4 27. a4 Ng7 28. b5 axb5 29. c6 bxc6 30. a5 $11) 27. Qc8 {[%emt 0:00:47]} Nxf4 {[%emt 0:00:39]} 28. a4 {[%emt 0:02:14]} Rhh7 {[%emt 0:03:41][%cal Od7c7]} 29. c6 {[%emt 0:01:34]} bxc6 {[%emt 0:06:25]} 30. Qxc6 {[%emt 0:01:48]} Be7 {[%emt 0:00:52]} 31. Qxa6 {[%emt 0:02:26]} (31. b5 Bxd6 32. exd6) 31... Bxd6 {[%emt 0:00:09]} 32. exd6 {[%emt 0:00:17]} Rd8 {[%emt 0:05:22] ( -> ...Rhd7)} 33. Ke3 {[%emt 0:04:54]} Rhd7 {[%emt 0:00:13] Black mates.} 34. Qb5 {[%emt 0:01:04]} Kf7 {[%emt 0:00:17]} 35. Kd2 {[%emt 0:04:15]} Rxd6+ {[%emt 0:00:07]} 36. Kc2 {[%emt 0:00:32]} Rd2+ {[%emt 0:18:55]} 37. Kb1 {[%emt 0:04:10]} Rxf2 {[%emt 0:00:00][%cal Rd8d1]} 38. Qb7+ {[%emt 0:00:59]} Kg6 {[%emt 0:00:00][%cal Rd8d1]} 39. Kc1 {[%emt 0:03:10]} Rdd2 {[%emt 0:00:00] Excellently played by Lee!   Weighted Error Value: White=0.68/Black=0.07 (flawless)} 0-1

[Event "1000GM Memorial Day NY IM-B 2023"]
[Site "New York"]
[Date "2023.05.28"]
[Round "5.4"]
[White "Nakada, Akira"]
[Black "Barbosa, Oliver"]
[Result "0-1"]
[ECO "D27"]
[WhiteElo "2321"]
[BlackElo "2492"]
[Annotator "TA"]
[PlyCount "82"]
[EventDate "2023.05.23"]
[EventType "schev"]
[EventCountry "USA"]
[SourceTitle "playchess.com"]
[Source "ChessBase"]
[SourceQuality "1"]
[TimeControl "5400+30"]

{[%evp 20,82,6,0,2,0,14,27,25,18,10,23,13,25,18,0,0,0,35,36,156,152,135,24,18,0,0,0,0,0,0,0,0,-14,-3,-14,-14,-1,-1,-6,-3,-25,-25,-22,-24,-33,0,-120,-122,-119,-13,-15,0,-15,-14,-27,-29,-59,-64,-164,-172,-171,-152,-125,-93]} 1. c4 {[%emt 0:00:38]} e6 {[%emt 0:00:24]} 2. Nc3 {[%emt 0:00:12]} d5 {[%emt 0:00:08]} 3. e3 {[%emt 0:00:05]} Nf6 {[%emt 0:00:58]} 4. Nf3 {[%emt 0:00:05]} dxc4 {[%emt 0:00:43]} 5. Bxc4 {[%emt 0:00:16]} a6 {[%emt 0:00:09]} 6. d4 {[%emt 0:00:26]} c5 {[%emt 0:00:19]} 7. O-O {[%emt 0:00:41]} Nc6 {[%emt 0:01:32]} 8. a4 {[%emt 0:10:51]} Be7 {[%emt 0:02:58][%cal Bf8e7,Be7c5,Bc5a7][%mdl 32]} 9. dxc5 {[%emt 0:05:53]} Qxd1 {[%emt 0:00:23]} 10. Rxd1 {[%emt 0:00:06]} Bxc5 {[%emt 0:00:11]} 11. Bd2 {[%emt 0:03:42]} Ke7 {[%emt 0:05:43] D27: Queen's Gambit Accepted: Classical main line: 7 e4!? and 7 a4.} 12. a5 {[%emt 0:08:12]} Rd8 {[%emt 0:05:51]} 13. Na4 {[%emt 0:03:11]} Ba7 {[%emt 0:02:20] [#] White has an edge.} 14. Bc3 $146 {[%emt 0:02:33]} ({Predecessor:} 14. b4 Ne4 15. Be1 Rxd1 16. Rxd1 Bd7 17. Bd3 Nf6 18. Rb1 Rc8 19. Nc5 Bxc5 20. bxc5 {½-½ Barseghyan,A (2383)-Fischer,D (2351) Kiel Doppelbauer IM 2nd 2022 (2)}) 14... Rxd1+ {[%emt 0:01:57]} 15. Rxd1 {[%emt 0:00:08]} Bd7 {[%emt 0:00:13][%cal Oc6a5]} 16. Nb6 {[%emt 0:02:33]} Rd8 {[%emt 0:17:42]} 17. Nd4 {[%emt 0:14:34][%cal Bf3d4,Bd4b3,Bb3a5][%mdl 32]} Bxb6 {[%emt 0:16:28]} 18. axb6 {[%emt 0:00:05]} Rc8 {[%emt 0:00:17]} 19. Nb3 {[%emt 0:04:49]} Nb8 {[%emt 0:02:47] Black is weak on the dark squares} (19... Rd8 $14) 20. Na5 $1 $16 {[%emt 0:05:16]} Bc6 {[%emt 0:04:13]} 21. Be5 {[%emt 0:08:30]} ({White should try} 21. Bb4+ $16 Ke8 22. Bd6) 21... Nd5 $11 {[%emt 0:07:19]} 22. Bxd5 {[%emt 0:02:01]} Bxd5 {[%emt 0:01:47]} 23. Bc7 {[%emt 0:00:04]} Nd7 {[%emt 0:01:07]} 24. f3 {[%emt 0:02:26] e4 would be deadly.} f5 {[%emt 0:00:58]} 25. Rd4 {[%emt 0:05:47]} Nf6 {[%emt 0:01:05]} 26. b4 {[%emt 0:01:06]} g5 {[%emt 0:02:48]} 27. Rd2 {[%emt 0:03:30]} Ne8 {[%emt 0:07:32]} 28. Be5 {[%emt 0:00:04]} Rc1+ {[%emt 0:01:38]} 29. Kf2 {[%emt 0:00:01] And now g4 would win.} Nf6 {[%emt 0:01:05]} 30. Rd4 {[%emt 0:05:47]} Rc2+ {[%emt 0:01:06]} 31. Kf1 {[%emt 0:00:02]} h5 {[%emt 0:03:30]} 32. h3 {[%emt 0:04:40]} Ra2 {[%emt 0:04:00]} 33. Rd1 {[%emt 0:01:35]} (33. e4 $11 Ra1+ 34. Kf2 Ra2+ 35. Kg1 fxe4 36. Bxf6+ {[%mdl 64] Remove Defender} Kxf6 37. fxe4) 33... Nd7 $17 {[%emt 0:02:30][%csl LRb6,LRe5]} 34. Bc7 {[%emt 0:00:14] [#]} Rb2 {[%emt 0:00:56]} (34... g4 $1 $17 {White must now prevent ...gxh3.} 35. hxg4 hxg4 36. Rxd5 {[%mdl 64] Remove Defender} exd5 37. Nxb7 Rc2 38. Bd8+ Ke6) 35. Rd4 $11 {[%emt 0:00:08] aiming for e4.} Nf6 {[%emt 0:00:09]} 36. Be5 {[%emt 0:01:22]} Rc2 {[%emt 0:00:02]} 37. Bg3 {[%emt 0:04:12]} g4 {[%emt 0:01:15]} 38. hxg4 {[%emt 0:00:04]} hxg4 {[%emt 0:00:08]} 39. Bh4 {[%emt 0:00:35]} (39. Rf4 $15) 39... gxf3 $19 {[%emt 0:00:44]} 40. gxf3 {[%emt 0:01:57]} Bxf3 {[%emt 0:00:32]} 41. e4 {[%emt 0:01:48] [#]} e5 $1 {[%emt 0:02:10] What a bad dream for White.   Weighted Error Value: White=0.20 (precise) /Black=0.16 (very precise)} ({Not} 41... Bxe4 42. Rxe4 fxe4 43. Nxb7 $15) 0-1